[Event "1st Semana Santa Torrevieja 2022"]
[Site "Torrevieja Alicante"]
[Date "2022.04.16"]
[Round "6.6"]
[White "Goluch, Piotr"]
[Black "Vasquez Schroeder, Rodrigo"]
[Result "0-1"]
[ECO "D12"]
[WhiteElo "2314"]
[BlackElo "2493"]
[Annotator "TA"]
[PlyCount "82"]
[EventDate "2022.04.12"]
[EventType "swiss"]
[EventCountry "ESP"]
[SourceTitle "playchess.com"]
[Source "ChessBase"]
[SourceQuality "1"]
[TimeControl "5400+30"]

{[%evp 10,82,30,29,31,13,15,8,23,16,28,14,33,-24,-24,-29,-26,-31,-29,-29,0,0,0,0,0,-8,0,0,0,11,19,0,0,-29,-25,-41,-35,-34,-49,-30,-20,-41,-14,-39,-23,-50,-57,-60,-30,-128,-63,-395,-379,-381,-366,-368,-349,-512,-510,-503,-560,-548,-541,-575,-587,-541,-521,-770,-750,-877,-877,-810,-787,-695,-668]} 1. d4 {[%emt 0:00:03]} d5 {[%emt 0:00:09]} 2. c4 {[%emt 0:00:15]} c6 {[%emt 0:00:07]} 3. Nf3 {[%emt 0:00:14]} Nf6 {[%emt 0:00:08]} 4. e3 {[%emt 0:00:04]} Bf5 {[%emt 0:01:06]} 5. Nc3 {[%emt 0:00:07]} e6 {[%emt 0:00:13]} 6. Nh4 {[%emt 0:00:31]} Bg4 {[%emt 0:00:22] D12: Slav Defence: 3 Nf3 Nf6 4 e3 Bf5.} 7. f3 {[%emt 0:00:10]} Bh5 {[%emt 0:00:06]} 8. g3 {[%emt 0:00:22]} Nbd7 {[%emt 0:00:49] The position is equal.} 9. cxd5 {[%emt 0:09:00]} cxd5 {[%emt 0:02:52]} 10. Be2 {[%emt 0:00:52]} a6 {[%emt 0:01:39] [#]} 11. a4 $146 {[%emt 0:02:46]} (11. O-O $14) ({Predecessor:} 11. Ng2 Bd6 12. Nf4 Bg6 13. Nxg6 hxg6 14. Kf2 b5 15. Bd2 Qb8 16. Kg2 Qb7 17. Rc1 {0-1 (43) Nguyen,A (2469)-Dang,H (2043) Ho Chi Minh City 2014}) 11... Nb8 $11 {[%emt 0:02:14]} 12. O-O {[%emt 0:04:09]} Nc6 {[%emt 0:00:28]} 13. Bd2 {[%emt 0:04:45]} Be7 {[%emt 0:11:01]} 14. Ng2 {[%emt 0:08:04]} Na5 {[%emt 0:04:38]} 15. Nf4 {[%emt 0:01:37]} Bg6 {[%emt 0:00:23]} 16. Nxg6 {[%emt 0:02:08]} hxg6 {[%emt 0:00:05]} 17. b3 {[%emt 0:03:13]} Bb4 {[%emt 0:01:49]} 18. Rb1 {[%emt 0:05:19]} Rc8 {[%emt 0:02:36]} 19. Na2 {[%emt 0:01:37]} Bd6 {[%emt 0:02:59]} 20. Be1 {[%emt 0:07:39]} O-O {[%emt 0:04:22]} 21. Bd3 {[%emt 0:00:47]} e5 {[%emt 0:01:00]} 22. dxe5 {[%emt 0:09:51]} Bxe5 {[%emt 0:00:08]} 23. Qd2 {[%emt 0:00:18]} Nc6 {[%emt 0:00:53]} 24. Nb4 {[%emt 0:00:28]} Re8 {[%emt 0:01:54]} 25. Nc2 {[%emt 0:09:04]} Bb8 {[%emt 0:01:02]} 26. Bf2 {[%emt 0:01:14]} Ba7 {[%emt 0:01:32][%cal Of6e4]} 27. Rfd1 {[%emt 0:01:43]} Ne5 {[%emt 0:03:53]} 28. Be2 {[%emt 0:00:07]} Qe7 {[%emt 0:03:18]} 29. Kg2 {[%emt 0:05:31]} (29. h3 $11 {keeps the balance.}) 29... Neg4 {[%emt 0:06:26] &Nero is more active.} (29... g5 $1 $17 {[%cal Rg5g4] White must now prevent ...g4.} 30. h3 g4 31. hxg4 Nexg4 $1 32. fxg4 Qe4+ 33. Bf3 Qxc2) 30. fxg4 $2 {[%emt 0:00:08][%mdl 8192] [#] Now White is beyond hope.} (30. Bg1 $15) 30... Ne4 $1 $19 {[%emt 0:00:14]} ({Inferior is} 30... Qe4+ 31. Bf3 Qxc2 32. Rb2 $15) 31. Bf3 {[%emt 0:04:22]} Nxd2 {[%emt 0:00:50]} 32. Rxd2 {[%emt 0:00:02]} Red8 {[%emt 0:01:42]} 33. Rbd1 {[%emt 0:00:28]} (33. Rb2 {is a better defense.}) 33... Rc3 {[%emt 0:00:47][%cal Bc8c3,Bc3b3,Bb3b2][%mdl 32] Black is clearly winning.} 34. Nd4 {[%emt 0:00:18]} Bxd4 {[%emt 0:00:43]} 35. Rxd4 {[%emt 0:00:04]} Rxb3 {[%emt 0:00:58]} 36. Bxd5 {[%emt 0:00:05] [#]} Rxd5 {[%emt 0:00:17]} 37. Rxd5 {[%emt 0:00:04]} Qe4+ {[%emt 0:00:55]} 38. Kh3 {[%emt 0:02:06]} Rb2 {[%emt 0:01:21]} 39. R5d4 {[%emt 0:00:19]} Qf3 {[%emt 0:00:48]} 40. R1d2 {[%emt 0:00:06]} Rxd2 {[%emt 0:00:56]} 41. Rxd2 {[%emt 0:00:01]} g5 {[%emt 0:00:53] Weighted Error Value: White=0.45/Black=0.07 (flawless)} 0-1

[Event "1st Semana Santa Torrevieja 2022"]
[Site "Torrevieja Alicante"]
[Date "2022.04.16"]
[Round "6.7"]
[White "Vereggen, Lars"]
[Black "Chatalbashev, Boris"]
[Result "0-1"]
[ECO "A45"]
[WhiteElo "2326"]
[BlackElo "2515"]
[Annotator "TA"]
[PlyCount "64"]
[EventDate "2022.04.12"]
[EventType "swiss"]
[EventCountry "ESP"]
[SourceTitle "playchess.com"]
[Source "ChessBase"]
[SourceQuality "1"]
[TimeControl "5400+30"]

{[%evp 9,64,45,51,-34,-15,-19,-20,-21,-16,-101,-110,-111,-108,-115,-114,-116,-106,-127,-96,-147,-112,-132,-127,-171,-168,-159,-152,-166,-173,-256,-277,-277,-272,-246,-246,-264,-241,-304,-304,-303,-101,-96,-75,-383,-333,-304,-335,-1270,-1246,-3550,-2659,-2381,-703,-2248,-2065,-5385,-2413]} 1. d4 {[%emt 0:01:28]} Nf6 {[%emt 0:00:07]} 2. Bg5 {[%emt 0:03:26]} Ne4 {[%emt 0:00:32]} 3. Bf4 {[%emt 0:00:05]} c5 {[%emt 0:00:26]} 4. f3 {[%emt 0:01:44]} Nf6 {[%emt 0:00:20]} 5. dxc5 {[%emt 0:00:28]} b6 {[%emt 0:00:22]} 6. c6 {[%emt 0:02:31] A45: Trompowsky Attack.} ({Better is} 6. e4 $14) 6... Nxc6 $15 {[%emt 0:00:34]} 7. e4 {[%emt 0:00:07]} e5 {[%emt 0:03:58]} 8. Bg5 {[%emt 0:00:38] [#] The position is equal.} Bb4+ $146 {[%emt 0:06:38]} ({Predecessor:} 8... h6 9. Bxf6 Qxf6 10. Nc3 Bb4 11. Qd2 O-O 12. Bc4 Bb7 13. Nge2 Rac8 14. a3 Bxc3 15. Nxc3 {0-1 (31) Borodinov,D (2298)-Kokarev,D (2608) Vladivostok 2015}) 9. Nd2 {[%emt 0:06:17] [#]} (9. c3 $11 Bc5 10. b4) 9... Nxe4 $1 $17 {[%emt 0:02:41][%mdl 512]} 10. fxe4 {[%emt 0:02:07]} Qxg5 {[%emt 0:00:07]} 11. c3 {[%emt 0:00:05]} Be7 {[%emt 0:05:42] &Nero is more active.} 12. Ngf3 {[%emt 0:01:02]} Qg6 {[%emt 0:00:09]} 13. Qc2 {[%emt 0:06:05]} Bb7 {[%emt 0:03:51]} 14. O-O-O {[%emt 0:02:08]} (14. Bc4 $142) 14... Rc8 {[%emt 0:00:05]} 15. Bc4 {[%emt 0:03:19]} O-O {[%emt 0:03:32]} (15... Qxg2 $6 16. Rdg1 Qh3 17. Rxg7 $11) 16. Qd3 {[%emt 0:01:51]} b5 {[%emt 0:12:14]} (16... Qxg2 17. Qxd7 Rb8 18. Rhg1 $14) 17. Bxb5 {[%emt 0:30:00]} Nb4 $1 {[%emt 0:00:10]} (17... Qxg2 18. Qxd7 Ba3 19. bxa3 $18) 18. Qe2 {[%emt 0:00:15]} Nxa2+ {[%emt 0:01:47]} 19. Kb1 {[%emt 0:00:51] [#]} (19. Kc2 {keeps fighting.}) 19... Nxc3+ $1 $19 {[%emt 0:03:06][%mdl 512]} 20. bxc3 {[%emt 0:00:28]} Rxc3 {[%emt 0:16:07]} 21. Rc1 {[%emt 0:02:26]} (21. Nxe5 Qb6 22. Rc1 (22. Nxd7 $2 Qa5 $19) 22... Ra3 $19) 21... Ra3 {[%emt 0:01:07] aiming for ...Qb6.} 22. Rc2 {[%emt 0:05:17]} (22. Rc7 $2 Qb6 23. Rc2 (23. Rxd7 $2 Ra5 $19) 23... Qa5 $19) 22... d5 $1 {[%emt 0:13:05]} 23. Rf1 {[%emt 0:09:45]} ({Not} 23. Rc7 $2 Qb6 $1 24. Rhc1 (24. Rxe7 $2 Qa5 $19) 24... Qa5 $1 25. Rxe7 (25. Rxb7 $2 Ra1+ 26. Kc2 Rc8+ 27. Qc4 Rxc1+ 28. Kxc1 dxc4 $19) 25... Qb4+ 26. Kc2 Rc8+ 27. Bc4 dxc4 $19) 23... Qb6 {[%emt 0:11:24]} 24. Rb2 {[%emt 0:01:40][%cal Ob5c4]} dxe4 $2 {[%emt 0:00:07]} (24... Re3 $19 25. Qd1 Qc7) 25. Nxe5 $17 {[%emt 0:00:58] [#] Strongly threatening Bc4.} ({Wrong is} 25. Nxe4 $2 Re3 26. Bd3 Rxe2 $19) 25... e3 $1 $36 {[%emt 0:01:06][%mdl 2048] White is under strong pressure.} 26. Bc6 $2 {[%emt 0:02:03][%mdl 8192] Loses the game.} Ba6 {[%emt 0:04:18][%mdl 64] Skewer. A strong pair of Bishops.} 27. Ndc4 {[%emt 0:00:17]} Bxc4 {[%emt 0:02:26] The board is on fire.} 28. Qxc4 {[%emt 0:08:06]} (28. Nxc4 Qxc6 29. Nxa3 Bxa3 30. Rb3) 28... Qa5 $19 {[%emt 0:00:02] ( -> ...Ra1+). Black is clearly winning.} 29. Rb5 {[%emt 0:07:54]} Ra1+ {[%emt 0:02:30]} 30. Kb2 {[%emt 0:00:07]} Qa3+ {[%emt 0:00:36]} 31. Kc2 {[%emt 0:00:04]} Ra2+ {[%emt 0:00:38]} 32. Kb1 {[%emt 0:01:02] [#]} e2 $1 {[%emt 0:00:46][%mdl 512] Weighted Error Value: White=0.86/Black=0.10 (very precise)} 0-1

[Event "1st Semana Santa Torrevieja 2022"]
[Site "Torrevieja Alicante"]
[Date "2022.04.16"]
[Round "6.8"]
[White "Remolar Gallen, Jose"]
[Black "Vrolijk, Liam"]
[Result "1/2-1/2"]
[ECO "E04"]
[WhiteElo "2308"]
[BlackElo "2480"]
[Annotator "TA"]
[PlyCount "76"]
[EventDate "2022.04.12"]
[EventType "swiss"]
[EventCountry "ESP"]
[SourceTitle "playchess.com"]
[Source "ChessBase"]
[SourceQuality "1"]
[TimeControl "5400+30"]

{[%evp 13,76,-11,0,-32,-9,-10,0,-84,-89,-85,-102,-112,-110,-110,-95,-139,-131,-170,-145,-203,-180,-265,-172,-177,-156,-216,-62,-245,-232,-298,-308,-469,-473,-464,-456,-504,-487,-468,-489,-518,-497,-486,-395,-786,-789,-773,-775,-747,-729,-1322,-1295,-29975,-29976,-29976,-29977,-29978,-29979,-29987,-29973,-29994,-29995,-29995,-29994,-29995,-875]} 1. d4 {[%emt 0:00:04]} Nf6 {[%emt 0:00:33]} 2. Nf3 {[%emt 0:00:14]} d5 {[%emt 0:00:13]} 3. c4 {[%emt 0:00:12]} e6 {[%emt 0:00:17]} 4. Nc3 {[%emt 0:00:15]} c6 {[%emt 0:00:49]} 5. g3 {[%emt 0:00:43]} dxc4 {[%emt 0:02:22]} 6. Bg2 {[%emt 0:00:08]} b5 {[%emt 0:02:18][%cal Bb7b5,Bb5b4][%mdl 32]} 7. O-O {[%emt 0:09:04]} Bb7 {[%emt 0:03:39]} 8. e4 {[%emt 0:03:57] E04: Open Catalan: 5 Nf3.} (8. Ne5 $5 {[%cal Rc3b5]}) 8... Be7 {[%emt 0:07:55]} 9. a4 {[%emt 0:01:54]} a6 {[%emt 0:04:08][%cal Ba7a6,Ba6a5][%mdl 32] [#]} 10. b3 $146 {[%emt 0:02:57]} (10. e5 $11 Nd5 11. Bd2) ({Predecessor:} 10. e5 Nd5 11. Ne4 h6 12. h4 Nd7 13. h5 c5 14. Qe2 cxd4 15. Nxd4 Qb6 16. Nf3 {0-1 (37) Thejkumar,M (2433)-Pridorozhni,A (2550) Chess.com INT 2021}) 10... b4 $1 $17 {[%emt 0:13:38]} 11. e5 {[%emt 0:00:20] [#]} Nd5 {[%emt 0:00:07]} 12. Ne4 {[%emt 0:00:11] [#]} c3 {[%emt 0:00:21]} 13. Bg5 {[%emt 0:00:19][%cal Oe4d6] Threatens to win with Nd6+!} O-O {[%emt 0:00:20]} 14. Re1 {[%emt 0:13:09]} a5 {[%emt 0:03:37]} 15. Qc2 {[%emt 0:00:57]} h6 {[%emt 0:01:26]} 16. h4 {[%emt 0:11:06]} (16. Bxe7 $17 Qxe7 17. Nd6) 16... Nd7 {[%emt 0:07:48]} ({Worse is} 16... hxg5 17. Nexg5 Bxg5 18. Nxg5 $15) 17. Bh3 {[%emt 0:03:32]} (17. Bxe7 {was called for.} Qxe7 18. Nd6) 17... Ba6 {[%emt 0:03:18]} ({Stronger than} 17... hxg5 18. Nexg5 Bxg5 19. Nxg5 $17) 18. Rad1 {[%emt 0:07:18]} Rc8 {[%emt 0:04:10]} ({Inferior is} 18... hxg5 19. Nexg5 Bxg5 20. Nxg5 $17) 19. Bc1 {[%emt 0:18:42]} (19. Bxe7 $17 {was worth a try.} Qxe7 20. Nd6) 19... c5 $2 {[%emt 0:02:38]} ({Black should play} 19... Kh8 $19 {...c5 is the strong threat.} 20. g4 c5 21. dxc5 Nxc5) 20. dxc5 $2 {[%emt 0:00:49] Now White is beyond hope.} (20. Bxh6 $1 $15 gxh6 21. dxc5) 20... Nxc5 $19 {[%emt 0:01:56]} 21. Nd4 {[%emt 0:02:12]} Qb6 {[%emt 0:04:57]} 22. g4 {[%emt 0:04:01]} (22. Bf1 $142) 22... Nxe4 {[%emt 0:04:46]} 23. Rxe4 {[%emt 0:00:10]} Bxh4 {[%emt 0:03:05]} 24. Nf3 {[%emt 0:02:27]} Be7 {[%emt 0:00:30][%cal Bh4e7,Be7c5,Bc5f2][%mdl 32]} 25. g5 {[%emt 0:02:11]} h5 {[%emt 0:00:40]} 26. g6 {[%emt 0:05:03]} fxg6 {[%emt 0:03:10]} 27. Nd4 {[%emt 0:00:33]} Rf5 {[%emt 0:03:04]} 28. Be3 $2 {[%emt 0:00:39]} (28. Nxf5 gxf5 29. Red4) 28... Nxe3 {[%emt 0:04:27]} 29. Rxe3 {[%emt 0:00:26]} Bc5 {[%emt 0:00:51]} 30. Nxf5 {[%emt 0:00:17]} gxf5 {[%emt 0:00:10]} 31. Rg3 {[%emt 0:00:20]} Rd8 {[%emt 0:01:15]} 32. Kh2 {[%emt 0:00:53]} Rxd1 {[%emt 0:02:41] Black mates.} 33. Qxd1 {[%emt 0:00:04]} Bxf2 {[%emt 0:00:33]} 34. Rg6 {[%emt 0:00:15]} Qd4 {[%emt 0:02:24]} 35. Qf3 {[%emt 0:03:41]} Be3 {[%emt 0:02:53]} 36. Qxh5 {[%emt 0:03:34]} Bf4+ {[%emt 0:00:42]} 37. Kh1 {[%emt 0:00:15]} c2 {[%emt 0:01:18]} 38. Rg1 {[%emt 0:00:39] [#]} Qxg1+ $3 {[%emt 0:00:13][%mdl 33280] Weighted Error Value: White=0.75/Black=0.16 (very precise) . An unexpected result.} 1/2-1/2

[Event "1st Semana Santa Torrevieja 2022"]
[Site "Torrevieja Alicante"]
[Date "2022.04.16"]
[Round "6.10"]
[White "Garcia Martin, Marta"]
[Black "Batsiashvili, Nino"]
[Result "1/2-1/2"]
[ECO "C50"]
[WhiteElo "2299"]
[BlackElo "2491"]
[Annotator "TA"]
[PlyCount "74"]
[EventDate "2022.04.12"]
[EventType "swiss"]
[EventCountry "ESP"]
[SourceTitle "playchess.com"]
[Source "ChessBase"]
[SourceQuality "1"]
[TimeControl "5400+30"]

{[%evp 9,74,10,20,11,16,12,11,12,20,9,8,8,7,11,11,0,0,0,4,0,14,0,4,0,0,0,25,-14,0,0,0,-5,0,0,32,27,48,31,56,54,60,56,54,68,116,114,112,102,108,96,90,17,17,8,11,0,17,20,33,38,35,0,21,0,58,0,52]} 1. e4 {[%emt 0:00:03]} e5 {[%emt 0:00:03]} 2. Nf3 {[%emt 0:00:36]} Nc6 {[%emt 0:00:04]} 3. Bc4 {[%emt 0:00:19][%cal Bf1c4,Bc4d5,Bd5b3][%mdl 32]} Nf6 {[%emt 0:00:06]} 4. d3 {[%emt 0:00:05]} Bc5 {[%emt 0:00:06]} 5. Nc3 {[%emt 0:00:38]} a6 {[%emt 0:02:51]} 6. Nd5 {[%emt 0:01:08] C50: Hungarian Defence and Giuoco Pianissimo.} Nxd5 {[%emt 0:05:38]} 7. Bxd5 {[%emt 0:09:26]} O-O {[%emt 0:06:00]} 8. O-O {[%emt 0:07:53]} d6 {[%emt 0:04:09]} 9. Bg5 {[%emt 0:10:47]} Qe8 {[%emt 0:04:39] [#]} 10. c3 $146 {[%emt 0:01:52]} ({Predecessor:} 10. Nh4 Nb4 11. Bc4 b5 12. Bb3 a5 13. Qf3 a4 14. Qg3 h6 15. Bxh6 g6 16. Bxf8 Kxf8 {1-0 (39) Zagorsek,D (1500)-Asanin,S (1500) Murska Sobota 2007}) 10... Ne7 {[%emt 0:02:29]} 11. Bb3 {[%emt 0:08:07]} Ng6 {[%emt 0:00:49]} 12. d4 {[%emt 0:02:18]} exd4 {[%emt 0:07:51]} 13. cxd4 {[%emt 0:00:25]} Ba7 {[%emt 0:00:01]} 14. Qd3 {[%emt 0:01:09]} Bg4 {[%emt 0:04:42]} 15. Nd2 {[%emt 0:16:21]} Qb5 {[%emt 0:11:19]} 16. Qxb5 {[%emt 0:00:14]} axb5 {[%emt 0:00:01]} 17. Be3 {[%emt 0:00:09]} Rfe8 {[%emt 0:02:45]} 18. Rac1 {[%emt 0:04:46] Black must now prevent h3.} c6 {[%emt 0:01:09]} 19. Rfe1 {[%emt 0:13:41]} Bd7 {[%emt 0:02:19]} 20. f4 {[%emt 0:04:17]} Nf8 {[%emt 0:02:56]} 21. f5 {[%emt 0:06:14]} d5 {[%emt 0:00:43]} 22. Bf2 {[%emt 0:00:08]} ({Much weaker is} 22. exd5 Rxe3 $1 23. Rxe3 Bxd4 $15) 22... Rad8 {[%emt 0:03:23]} 23. g4 {[%emt 0:02:19][%cal Bg2g4,Bg4f5][%mdl 32]} g6 {[%emt 0:06:11]} 24. Nf3 {[%emt 0:04:01]} Rxe4 {[%emt 0:02:41]} 25. Rxe4 {[%emt 0:00:05]} dxe4 {[%emt 0:00:07]} 26. Ng5 {[%emt 0:00:04][%csl LRe4,LRf7]} gxf5 {[%emt 0:11:14]} (26... e3 $14 27. Bxe3 Be8) 27. Nxf7 $16 {[%emt 0:01:32]} Ra8 {[%emt 0:00:07] [#]} 28. gxf5 {[%emt 0:02:45] Hoping for Kh1.} Kg7 {[%emt 0:00:09]} 29. Nd6 {[%emt 0:03:00][%csl LRb7,LRe4]} Bb8 {[%emt 0:00:55]} 30. Bg3 {[%emt 0:00:27] &Bianco is much more active.} ({But not} 30. Nxe4 Bxf5 31. Nc5 b6 $11) (30. Nxb7 $16 {And now Be3 would win.} Bf4 31. Rf1) 30... Bxd6 $11 {[%emt 0:00:06]} 31. Bxd6 {[%emt 0:00:04]} Bxf5 {[%emt 0:00:05]} 32. Be5+ {[%emt 0:00:07] This bishop pair is nice.} Kg6 {[%emt 0:01:16]} 33. Kf2 {[%emt 0:01:22][%mdl 1024] Strongly threatening Rg1+. White has compensation.} Kh6 {[%emt 0:08:38]} 34. Bf4+ {[%emt 0:00:34]} Kg7 {[%emt 0:00:01]} 35. Be5+ {[%emt 0:00:07]} Kh6 $1 {[%emt 0:00:01]} 36. Bf4+ {[%emt 0:00:43]} Kg7 {[%emt 0:00:00]} 37. Be5+ {[%emt 0:00:18]} Kh6 $1 {[%emt 0:00:02] Weighted Error Value: White=0.13 (very precise) /Black=0.08 (flawless)} 1/2-1/2

[Event "1st Semana Santa Torrevieja 2022"]
[Site "Torrevieja Alicante"]
[Date "2022.04.16"]
[Round "6.12"]
[White "Perea Fruet, Lorenzo"]
[Black "Tejedor Fuente, Enrique"]
[Result "1/2-1/2"]
[ECO "B45"]
[WhiteElo "2185"]
[BlackElo "2430"]
[Annotator "TA"]
[PlyCount "63"]
[EventDate "2022.04.12"]
[EventType "swiss"]
[EventCountry "ESP"]
[SourceTitle "playchess.com"]
[Source "ChessBase"]
[SourceQuality "1"]
[TimeControl "5400+30"]

{[%evp 17,63,47,44,53,32,29,56,59,160,160,156,107,120,99,81,84,82,72,133,134,137,33,41,29,39,0,68,61,82,41,40,18,36,0,0,0,0,0,18,18,19,20,20,21,21,21,25,5]} 1. e4 {[%emt 0:00:07]} c5 {[%emt 0:04:59]} 2. Nf3 {[%emt 0:00:08][%cal Bg1f3,Bf3d4,Bd4b5,Bb5c7][%mdl 32]} e6 {[%emt 0:00:37]} 3. d4 {[%emt 0:00:05]} cxd4 {[%emt 0:00:04]} 4. Nxd4 {[%emt 0:00:05]} Nf6 {[%emt 0:00:08]} 5. Nc3 {[%emt 0:00:16]} Nc6 {[%emt 0:00:06]} 6. Ndb5 {[%emt 0:00:07]} Bb4 {[%emt 0:00:06]} 7. Bf4 {[%emt 0:19:47]} Nxe4 {[%emt 0:05:25]} 8. Qf3 {[%emt 0:00:34]} d5 {[%emt 0:03:36]} 9. Nc7+ {[%emt 0:00:57]} Kf8 {[%emt 0:00:19][%cal Oe6e5]} 10. Nxa8 {[%emt 0:00:04] aiming for 0-0-0. B45: Sicilian Four Knights.} e5 {[%emt 0:13:09]} 11. Bd2 {[%emt 0:02:01]} Nd4 {[%emt 0:05:59]} 12. Qd1 {[%emt 0:00:56] White is slightly better.} ({Much worse is} 12. Qd3 Nc5 13. Qg3 Nxc2+ 14. Kd1 Nxa1 15. Qxe5 Ne4 $15) 12... Nxd2 {[%emt 0:11:29]} (12... Qh4 $14 13. g3 Qf6 14. Nxe4 Nf3+ 15. Qxf3 (15. Ke2 Nd4+ 16. Ke3 Nf5+ 17. Kf3 Nh4+ 18. Ke3 Nf5+ 19. Kf3 Nh4+ 20. Ke3 Nf5+ $11) 15... Qxf3 16. Bxb4+ Kg8) 13. Qxd2 $16 {[%emt 0:01:34]} Be6 {[%emt 0:00:10] [#]} 14. a3 $1 {[%emt 0:02:20]} Be7 {[%emt 0:03:31] [#]} 15. Nb5 $1 {[%emt 0:07:01]} Nxb5 {[%emt 0:00:54]} 16. Bxb5 {[%emt 0:02:01][%cal Od2e3]} Qxa8 {[%emt 0:00:00] [#]} (16... a6 $2 17. Ba4) 17. f4 $146 {[%emt 0:10:24][%cal Of4f5]} ({Predecessor:} 17. Ba4 d4 18. Bb3 Bxb3 19. cxb3 g5 20. O-O Qd8 21. Rfe1 Bd6 22. Rac1 Kg7 23. Rc4 {0-1 (36) Alonso Garcia,R (2396)-Cuartas,J (2529) Sitges 2010}) 17... a6 {[%emt 0:14:00] [#]} (17... Qb8 $142) 18. Ba4 $1 {[%emt 0:09:26]} exf4 {[%emt 0:05:00] [#]} 19. Qxf4 {[%emt 0:01:09]} ({White should try} 19. O-O-O $1 $16) 19... Qd8 $1 $14 {[%emt 0:00:15]} 20. O-O {[%emt 0:04:22]} Bd6 $1 {[%emt 0:00:03]} 21. Qe3 {[%emt 0:03:37]} (21. Qf2 $5 {[%cal Ra1e1]} Qe7 22. Kh1 $14) 21... Qh4 {[%emt 0:02:21] [#]} 22. g3 $1 {[%emt 0:02:21] Dancing on a razor blade.} Qe7 {[%emt 0:00:06] Threatens to win with ...Bc5.} 23. b4 {[%emt 0:00:29] Against Bc5. And now Rae1 would win. &Bianco is more active.} h5 $1 {[%emt 0:00:53]} 24. Rae1 {[%emt 0:01:15]} Rh6 {[%emt 0:01:09]} 25. Qa7 {[%emt 0:01:50] White wants to mate with Qa8+.} Kg8 {[%emt 0:02:13]} 26. Qa8+ {[%emt 0:00:45]} Kh7 {[%emt 0:00:08] White must now prevent ...h4.} 27. Qe8 {[%emt 0:08:41]} Qxe8 {[%emt 0:03:15]} 28. Bxe8 {[%emt 0:01:04]} Kg8 {[%emt 0:00:01] [#]} 29. Rxe6 $1 {[%emt 0:01:00]} fxe6 {[%emt 0:00:14]} 30. Bf7+ {[%emt 0:00:04]} Kh7 {[%emt 0:02:13]} 31. Re1 {[%emt 0:00:16][%mdl 1024] White has compensation.} h4 {[%emt 0:13:48]} 32. Rxe6 {[%emt 0:02:46] White really could win this.  Weighted Error Value: White=0.18 (very precise) /Black=0.11 (very precise)} 1/2-1/2

[Event "1st Semana Santa Torrevieja 2022"]
[Site "Torrevieja Alicante"]
[Date "2022.04.16"]
[Round "6.13"]
[White "Sabuk, Piotr"]
[Black "Van Dael, Siem"]
[Result "1-0"]
[ECO "E90"]
[WhiteElo "2411"]
[BlackElo "2303"]
[Annotator "TA"]
[PlyCount "53"]
[EventDate "2022.04.12"]
[EventType "swiss"]
[EventCountry "ESP"]
[SourceTitle "playchess.com"]
[Source "ChessBase"]
[SourceQuality "1"]
[TimeControl "5400+30"]

{[%evp 17,53,43,73,53,97,75,56,15,151,146,138,140,167,191,248,206,239,252,254,241,294,327,320,307,302,312,380,383,523,526,512,522,513,501,1549,1467,29990,29991]} 1. d4 {[%emt 0:00:03]} Nf6 {[%emt 0:00:08]} 2. c4 {[%emt 0:00:19]} g6 {[%emt 0:00:04]} 3. Nc3 {[%emt 0:00:04]} Bg7 {[%emt 0:00:04]} 4. e4 {[%emt 0:00:13]} d6 {[%emt 0:00:05]} 5. Nf3 {[%emt 0:00:04]} O-O {[%emt 0:00:07]} 6. h3 {[%emt 0:00:29]} e5 {[%emt 0:00:46]} 7. d5 {[%emt 0:00:30]} Na6 {[%emt 0:00:07]} 8. Bg5 {[%emt 0:01:22]} h6 {[%emt 0:01:34]} 9. Be3 {[%emt 0:00:30]} Nh5 {[%emt 0:00:15]} 10. g3 {[%emt 0:01:28] E90: King's Indian: Classical: Early deviations and 6 h3.} (10. Qd2 $5 {[%cal Re3h6]}) 10... f5 {[%emt 0:00:52]} 11. exf5 {[%emt 0:00:56]} gxf5 {[%emt 0:00:07]} 12. Nh4 {[%emt 0:01:26] White is slightly better.} Qe8 {[%emt 0:06:44] Black is now going downhill.} (12... f4 $11 13. Bd2 Qe8) 13. Be2 $16 {[%emt 0:04:31]} Nf6 {[%emt 0:00:17]} 14. Qd2 {[%emt 0:02:50] &Bianco is more active.} Kh7 {[%emt 0:09:39]} 15. O-O-O {[%emt 0:01:31] [#]} Nc5 $146 {[%emt 0:00:47]} (15... Qe7 $142 16. Kb1 Nc5) ({Predecessor:} 15... c6 16. dxc6 bxc6 17. Qxd6 Qf7 18. f4 exf4 19. Bxf4 Rb8 20. Qa3 Rb6 21. Rd2 c5 {½-½ (30) Harmon,C (2184)-Zilberstein,D (2392) McMinnville 2004}) 16. g4 {[%emt 0:09:28]} Nce4 {[%emt 0:04:10]} 17. Nxe4 {[%emt 0:03:35]} Nxe4 {[%emt 0:00:08] [#]} 18. Qc2 {[%emt 0:01:04]} Qe7 {[%emt 0:01:49]} 19. Nxf5 {[%emt 0:02:23]} Bxf5 {[%emt 0:00:27]} 20. gxf5 {[%emt 0:13:29]} Nf6 {[%emt 0:00:26]} 21. Rhg1 {[%emt 0:03:30]} Qd7 {[%emt 0:02:27]} 22. Rg6 {[%emt 0:01:38]} e4 {[%emt 0:01:35]} 23. Rdg1 {[%emt 0:03:39]} Rg8 {[%emt 0:00:05]} 24. Bg4 {[%emt 0:02:34]} Raf8 {[%emt 0:07:19]} 25. Qd2 {[%emt 0:03:25]} h5 {[%emt 0:01:17] [#]} (25... Nxg4 $142 26. hxg4 Rf6 27. Rxf6 (27. Bxa7 b6 $11) 27... Bxf6 28. Bxh6 Qa4) 26. Bd4 $1 $18 {[%emt 0:02:40][%cal Od2g5] Intending Qg5! and mate.} hxg4 {[%emt 0:03:47]} (26... e3 27. Qxe3) 27. Qg5 {[%emt 0:07:52] Weighted Error Value: White=0.07 (flawless) /Black=0.95} 1-0